bitfinex-derivatives/quotes_SOLF0:USTF0_20250829
["timestamp","ask_amount","ask_price","bid_price","bid_amount"]
[1756482403742,7.54,208.48,208.36,7.65]
[1756482404040,67.1383,208.49,208.31,3.96160698]
[1756482404041,7.54,208.44,208.31,7.65]
[1756482404743,74.7048,208.41,208.27,3.96160698]
[1756482404940,74.7048,208.41,208.27,7.65]
[1756482405250,7.54,208.36,208.24,67.2185]
[1756482405431,7.54,208.36,208.25,67.2141]
[1756482405832,7.54,208.36,208.25,74.8641]
[1756482406236,7.54,208.36,208.29,4.3199]
[1756482407647,7.54,208.36,208.26,4.3206]
[1756482407942,7.54,208.36,208.25,7.65]
[1756482407943,11.8587,208.36,208.25,7.65]
[1756482408643,213.50115499,208.39,208.2,322.3]
[1756482408644,7.54,208.34,208.2,322.3]
[1756482409139,4.3199,208.3,208.2,4.3218]
[1756482409542,93.59365499,208.29,208.14,11.61160698]
[1756482409738,7.54,208.23,208.1,67.2637]
[1756482409943,7.54,208.23,208.08,397.2973]
[1756482410141,7.54,208.23,208.09,4.3242]
[1756482410142,4.3216,208.22,208.09,4.3242]
[1756482410339,7.54,208.21,208.08,7.65]
[1756482411043,127.9,208.21,208.09,4.3243]
[1756482411248,127.9,208.21,208.08,7.65]
[1756482411848,127.5,208.2,208.08,7.65]
[1756482412047,7.54,208.19,208.06,67.2766]
[1756482412252,7.54,208.19,208.07,4.3246]
[1756482412759,7.54,208.19,208.07,71.5981]
[1756482412947,7.54,208.19,208.07,4.3246]
[1756482413546,135.06,208.19,208.09,71.5913]
[1756482413753,7.54,208.19,208.09,67.2672]
[1756482414147,7.54,208.19,208.11,4.3237]
[1756482414349,7.54,208.19,208.04,7.65]
[1756482414944,11.8623,208.19,208.05,4.325]
[1756482415546,7.54,208.16,208.04,7.65]
[1756482416448,7.54,208.16,208.04,11.9752]
[1756482417546,135.08,208.16,208.04,11.9752]
[1756482417753,7.54,208.16,208.04,11.9752]
[1756482417950,7.54,208.16,208.08,11.9743]
[1756482418849,11.8621,208.2,208.08,7.65]
[1756482419049,7.54,208.2,208.06,67.2762]
[1756482419257,7.54,208.2,208.07,7.65]
[1756482419957,74.7727,208.2,208.07,7.65]
[1756482420155,74.7727,208.2,208.02,72.4]
[1756482420156,67.2513,208.14,208.02,7.65]
[1756482420349,67.2455,208.16,208.02,7.65]
[1756482420350,135.08,208.13,208.02,7.65]
[1756482420556,135.08,208.13,207.96,322.42]
[1756482420753,135.08,208.13,207.97,7.65]
[1756482420957,7.54,208.13,207.97,7.65]
[1756482421157,7.54,208.11,207.97,7.65]
[1756482421348,7.54,208.06,207.91,133.74530824]
[1756482421549,7.54,208.02,207.91,7.65]
[1756482421754,7.54,208.08,207.95,67.3123]
[1756482421961,7.54,208.08,207.97,7.65]
[1756482422158,11.8646,208.08,207.97,7.65]
[1756482422350,7.54,208.08,207.97,7.65]
[1756482422552,127.56,208.1,207.97,7.65]
[1756482422859,330.24,208.12,207.97,7.65]
[1756482423054,330.24,208.12,207.99,67.2993]
[1756482423259,330.24,208.12,208.0,7.65]
[1756482424064,127.56,208.11,208.0,11.9761]
[1756482424660,7.54,208.1,207.97,4.3266]
[1756482424857,7.54,208.1,207.95,7.65]
[1756482425663,4.3245,208.08,207.96,4.3269]
[1756482425859,135.1,208.1,207.97,7.65]
[1756482426769,7.46,208.08,207.97,7.65]
[1756482427565,7.46,208.08,207.9,11.3982]
[1756482427566,11.7858,208.02,207.9,11.3982]
[1756482427767,127.56,208.01,207.9,11.3982]
[1756482428375,135.02,208.02,207.9,11.3982]
[1756482428566,7.46,208.02,207.9,11.3982]
[1756482428763,7.46,208.02,207.92,4.3277]
[1756482429269,18.85035499,208.08,207.92,67.321]
[1756482429468,7.46,208.07,207.97,7.07]
[1756482429674,330.16,208.12,207.99,7.07]
[1756482429869,127.56,208.11,208.01,4.3259]
[1756482430174,127.56,208.11,207.99,7.07]
[1756482430572,7.46,208.1,207.99,7.07]
[1756482430767,4.3247,208.08,207.99,7.07]
[1756482430972,7.46,208.08,207.92,7.07]
[1756482431174,26.31035499,208.08,207.92,7.07]
[1756482431374,4.3253,208.05,207.95,4.3271]
[1756482431568,7.46,208.04,207.92,7.07]
[1756482431972,7.46,208.04,207.95,4.3271]
[1756482432977,127.56,208.09,207.96,7.07]
[1756482433378,7.46,208.08,207.96,7.07]
[1756482433682,7.46,208.05,207.9,7.07]
[1756482434174,7.46,208.02,207.9,7.07]
[1756482434376,135.02,208.02,207.9,7.07]
[1756482435383,74.7564,208.0,207.84,7.07]
[1756482435580,7.46,208.0,207.84,7.07]
[1756482436079,7.46,208.0,207.88,74.4042]
[1756482436477,7.46,208.0,207.94,4.3273]
[1756482436674,116.76,208.03,207.92,67.3216]
[1756482437075,127.58,208.06,207.97,4.3266]
[1756482437280,4.3243,208.09,207.95,67.3121]
[1756482437281,131.9043,208.09,207.95,67.3121]
[1756482437882,4.3247,208.08,207.97,4.3267]
[1756482438182,4.3247,208.08,207.94,7.07]
[1756482438383,7.46,208.08,207.94,7.07]
[1756482438681,7.46,208.08,207.95,67.312]
[1756482439281,7.46,208.08,207.99,4.3263]
[1756482439580,127.56,208.11,207.99,7.07]
[1756482440178,7.46,208.1,207.94,7.07]
[1756482440372,4.3243,208.09,207.98,4.3264]
[1756482440574,7.46,208.1,207.94,7.07]
[1756482440776,67.267,208.09,207.94,7.07]
[1756482441083,4.3255,208.04,207.94,11.3974]
[1756482441281,127.56,208.04,207.89,7.07]
[1756482441482,127.56,208.04,207.88,67.3331]
[1756482441483,7.46,208.05,207.91,7.07]
[1756482441684,127.56,208.07,207.95,7.07]
[1756482441884,135.02,208.11,207.98,7.07]
[1756482442382,7.46,208.11,208.0,7.07]
[1756482442888,322.7,208.12,207.94,7.07]
[1756482442889,7.46,208.09,207.94,7.07]
[1756482443283,4.3252,208.05,207.96,4.3268]
[1756482443484,4.3252,208.05,207.94,7.07]
[1756482443485,7.46,208.05,207.94,7.07]
[1756482444787,4.3253,208.04,207.96,4.3268]
[1756482444989,4.3253,208.04,207.94,7.07]
[1756482446288,7.46,208.05,207.94,7.07]
[1756482446683,7.46,208.05,207.92,67.3209]
[1756482446684,127.54,208.08,207.95,67.3119]
[1756482446884,4.3244,208.09,207.96,7.07]
[1756482447185,4.3244,208.09,208.02,4.3257]
[1756482447390,4.3246,208.08,207.98,7.07]
[1756482447793,4.3253,208.05,207.95,4.327]
[1756482448090,67.2734,208.07,207.95,4.327]
[1756482449489,4.3261,208.01,207.93,11.3975]
[1756482449789,67.2799,208.05,207.93,7.07]
[1756482449790,7.46,208.03,207.93,7.07]
[1756482449979,4.3266,207.98,207.89,4.3284]
[1756482450180,194.8229,207.98,207.81,67.3553]
[1756482450487,67.3256,207.91,207.76,7.07]
[1756482450691,67.3223,207.92,207.76,7.07]
[1756482450692,4.3292,207.86,207.77,4.3309]
[1756482450888,67.3486,207.84,207.69,7.07]
[1756482451187,134.98,207.83,207.76,0.83727309]
[1756482451391,134.98,207.83,207.69,7.07]
[1756482451792,4.3301,207.81,207.71,4.3322]
[1756482452686,18.85035499,207.85,207.74,67.38]
[1756482452891,181.8124,207.89,207.75,7.07]
[1756482453092,18.85035499,207.85,207.69,7.90757536]
[1756482453292,4.3299,207.82,207.72,4.3318]
[1756482453791,23.17975499,207.85,207.74,4.3315]
[1756482453996,18.85035499,207.85,207.69,74.466]
[1756482454197,18.85035499,207.85,207.7,67.3929]
[1756482454490,4.3301,207.81,207.7,4.3322]
[1756482454794,11.7896,207.84,207.74,4.3315]
[1756482455297,4.3301,207.81,207.71,4.3321]
[1756482455591,7.46,207.84,207.71,4.3321]
[1756482455993,4.3299,207.82,207.73,4.3317]
[1756482456193,7.46,207.84,207.73,4.3317]
[1756482456384,7.46,207.84,207.71,67.3896]
[1756482456785,7.46,207.84,207.69,74.4651]
[1756482456786,7.46,207.84,207.75,4.3313]
[1756482457189,18.85035499,207.9,207.79,4.3304]
[1756482457190,4.3287,207.88,207.79,4.3304]
[1756482457486,26.44035499,207.95,207.79,67.3634]
[1756482457687,26.44035499,207.95,207.81,67.3568]
[1756482457893,7.59,207.95,207.85,4.3292]
[1756482458093,7.59,207.95,207.84,67.3477]
[1756482458292,7.59,207.95,207.85,67.3445]
[1756482458597,11.9172,207.95,207.82,7.39]
[1756482458793,74.9121,207.92,207.77,7.39]
[1756482459193,74.9121,207.92,207.78,4.3306]
[1756482459194,4.3285,207.89,207.78,4.3306]
[1756482459495,4.3285,207.89,207.77,7.39]
[1756482459695,4.3285,207.89,207.8,4.3303]
[1756482459890,7.59,207.92,207.79,67.3627]
[1756482460298,4.328,207.91,207.77,74.7598]
[1756482460698,7.59,207.92,207.77,7.39]
[1756482461094,7.59,207.92,207.78,67.3661]
[1756482461299,7.59,207.92,207.77,74.7589]
[1756482461495,7.59,207.92,207.77,7.39]
[1756482461693,7.59,207.92,207.77,74.76]
[1756482461894,4.3282,207.9,207.81,4.3301]
[1756482462096,67.3252,207.91,207.77,7.39]
[1756482462298,7.59,207.92,207.77,7.39]
[1756482462597,7.59,207.92,207.77,74.7598]
[1756482463705,4.3282,207.9,207.8,4.3301]
[1756482464699,67.3283,207.9,207.77,11.7208]
[1756482465002,67.3283,207.9,207.77,7.39]
[1756482465003,74.9249,207.88,207.77,7.39]
[1756482465499,74.9384,207.84,207.71,7.39]
[1756482466907,7.59,207.8,207.67,7.39]
[1756482467400,67.3651,207.79,207.67,7.39]
[1756482467703,4.3311,207.77,207.67,7.39]
[1756482467904,7.59,207.8,207.67,7.39]
[1756482468404,11.9204,207.8,207.67,74.7925]
[1756482468802,11.9204,207.8,207.68,67.3993]
[1756482468803,7.59,207.8,207.68,67.3993]
[1756482468999,4.3298,207.83,207.72,4.3318]
[1756482469203,67.3298,207.9,207.74,7.39]
[1756482469204,18.85035499,207.89,207.74,7.39]
[1756482469405,26.44035499,207.89,207.74,7.39]
[1756482469699,7.59,207.89,207.75,67.3763]
[1756482470004,7.59,207.89,207.76,67.3733]
[1756482470401,4.3288,207.88,207.78,4.3307]
[1756482470600,7.59,207.89,207.78,4.3307]
[1756482471606,67.3354,207.88,207.75,4.3311]
[1756482472801,4.3293,207.85,207.75,4.3311]
[1756482473002,7.59,207.89,207.75,4.3311]
[1756482473003,7.59,207.89,207.76,7.39]
[1756482473501,26.44035499,207.94,207.79,7.39]
[1756482473699,7.59,207.94,207.81,67.3569]
[1756482473901,7.59,207.94,207.82,7.39]
[1756482473902,11.9174,207.94,207.82,7.39]
[1756482474103,186.92788,207.96,207.88,4.3286]
[1756482474306,191.25498,207.96,207.86,7.39]
[1756482474503,191.25498,207.96,207.87,4.3286]
[1756482474904,186.92788,207.96,207.86,7.39]
[1756482475099,186.92788,207.96,207.87,67.3378]
[1756482475305,186.92788,207.96,207.88,7.39]
[1756482475704,186.92788,207.96,207.88,11.7184]
[1756482476008,186.92788,207.96,207.88,7.39]
[1756482476210,7.59,208.06,207.9,67.326]
[1756482476502,4.3256,208.03,207.91,7.39]
[1756482477009,7.59,208.06,207.92,67.3214]
[1756482477606,7.59,208.06,207.91,7.39]
[1756482477607,67.2802,208.05,207.91,7.39]
[1756482477801,7.59,208.02,207.91,7.39]
[1756482478703,4.3263,208.0,207.91,7.39]
[1756482478909,67.2931,208.01,207.86,7.39]
[1756482479306,4.3266,207.98,207.89,4.3284]
[1756482479611,7.59,208.02,207.89,7.39]
[1756482480009,7.59,208.02,207.9,67.3277]
[1756482480308,7.59,208.1,207.97,7.39]
[1756482480509,7.59,208.1,207.96,67.3077]
[1756482480510,7.59,208.16,208.04,4.3253]
[1756482481102,4.3238,208.11,208.01,7.39]
[1756482481306,11.9138,208.11,208.01,7.39]
[1756482482212,0.83635752,208.18,208.03,67.286]
[1756482482506,0.83635752,208.18,208.06,7.39]
[1756482482699,4.3224,208.18,208.07,4.3246]
[1756482482904,7.59,208.2,208.06,7.39]
[1756482482905,74.8221,208.2,208.06,7.39]
[1756482483311,11.9128,208.16,208.06,7.39]
[1756482484012,4.3232,208.14,208.03,4.3254]
[1756482484213,7.59,208.16,208.03,4.3254]
[1756482484604,4.3235,208.13,208.02,7.39]
[1756482485413,11.9139,208.11,207.97,7.39]
[1756482486010,11.9139,208.11,208.01,4.3259]
[1756482486509,4.3243,208.09,207.98,4.3264]
[1756482486711,7.59,208.11,207.97,7.39]
[1756482486907,7.51,208.18,208.03,67.286]
[1756482487208,7.51,208.18,208.04,67.2812]
[1756482487416,7.51,208.18,208.05,7.57]
[1756482487614,7.51,208.18,208.06,67.2764]
[1756482487811,0.83623693,208.22,208.08,7.57]
[1756482488012,7.51,208.23,208.08,7.57]
[1756482488212,4.322,208.2,208.09,4.3241]
[1756482488407,7.51,208.23,208.08,7.57]
[1756482488810,67.2249,208.22,208.08,7.57]
[1756482489006,7.51,208.2,208.08,7.57]
[1756482489406,7.51,208.16,208.03,11.8953]
[1756482489616,7.51,208.16,208.03,7.57]
[1756482489818,7.51,208.21,208.05,74.8486]
[1756482490413,4.3224,208.18,208.05,7.57]
[1756482491520,4.3228,208.16,208.07,4.3246]
[1756482492522,4.3228,208.16,208.05,7.57]
[1756482492911,7.51,208.15,208.04,4.3251]
[1756482493419,67.2508,208.14,208.01,4.3257]
[1756482493616,67.2605,208.11,208.0,7.57]
[1756482493820,7.51,208.1,208.0,7.57]
[1756482494223,67.2736,208.07,207.95,7.57]
[1756482494424,7.51,208.06,207.95,7.57]
[1756482495325,4.3255,208.04,207.95,11.897]
[1756482496622,67.2843,208.04,207.86,67.3394]
[1756482496823,67.2901,208.02,207.88,7.57]
[1756482497521,4.3265,207.99,207.89,4.3284]
[1756482497927,7.51,207.99,207.88,7.57]
[1756482498523,86.15305499,207.98,207.83,7.57]
[1756482498728,67.3061,207.97,207.83,7.57]
[1756482499124,23.17705499,207.98,207.87,4.3288]
[1756482499329,23.17705499,207.98,207.83,7.57]
[1756482499330,23.17705499,207.98,207.84,67.3471]
[1756482499630,18.85035499,207.98,207.83,7.57]
[1756482500325,18.85035499,207.98,207.88,4.3286]
[1756482500924,7.51,207.97,207.85,4.3291]
[1756482501124,67.3095,207.96,207.83,7.57]
[1756482501835,7.51,207.97,207.84,4.3295]
[1756482502130,7.51,207.97,207.83,7.57]
[1756482502523,4.3274,207.94,207.86,4.329]
[1756482502728,7.51,207.97,207.86,4.329]
[1756482503227,11.8369,207.97,207.88,4.3286]
[1756482503433,26.36035499,208.03,207.89,67.3314]
[1756482503932,7.51,208.03,207.94,4.3274]
[1756482505722,7.51,207.97,207.85,7.57]
[1756482506332,4.3278,207.92,207.85,7.57]
[1756482506539,7.51,207.97,207.85,7.57]
[1756482507233,74.7932,208.04,207.88,7.57]
[1756482507926,67.2886,208.03,207.91,4.3278]
[1756482508134,74.7932,208.04,207.88,7.57]
[1756482508135,7.51,207.99,207.88,7.57]
[1756482508333,7.51,207.96,207.82,7.57]
[1756482508534,7.51,208.01,207.87,67.3377]
[1756482508832,7.51,208.01,207.85,7.57]
[1756482509034,4.3271,207.96,207.85,7.57]
[1756482509230,7.51,207.97,207.85,7.57]
[1756482509929,67.3226,207.92,207.79,7.57]
[1756482511430,4.3287,207.88,207.81,4.3299]
[1756482511636,7.51,207.93,207.79,7.57]
[1756482511830,7.51,207.93,207.8,67.3612]
[1756482512130,7.51,207.93,207.82,7.57]
[1756482512434,74.8137,207.98,207.82,7.57]
[1756482512636,4.3276,207.94,207.86,4.3291]
[1756482512933,4.3276,207.94,207.77,7.57]
[1756482512934,74.8263,207.94,207.77,7.57]
[1756482513130,74.8358,207.91,207.77,7.57]
[1756482513334,7.51,207.86,207.77,7.57]
[1756482514025,4.3293,207.85,207.78,4.3306]
[1756482514233,7.51,207.86,207.72,7.57]
[1756482514433,67.3483,207.84,207.72,7.57]
[1756482514732,26.36035499,207.86,207.72,7.57]
[1756482517033,30.68955499,207.86,207.72,7.57]
[1756482517232,30.68955499,207.86,207.73,67.3835]
[1756482517626,30.68955499,207.86,207.76,4.331]
[1756482517824,26.36035499,207.86,207.72,7.57]
[1756482518030,7.39,207.84,207.72,7.57]
[1756482518231,7.39,207.89,207.76,7.32]
[1756482518835,7.39,207.86,207.71,7.32]
[1756482519133,67.3363,207.88,207.71,7.32]
[1756482519134,67.3516,207.83,207.71,7.32]
[1756482519330,4.3305,207.79,207.71,11.652]
[1756482519730,7.39,207.84,207.71,7.32]
[1756482520437,4.3306,207.79,207.69,4.3326]
[1756482520634,7.39,207.81,207.69,4.3326]
[1756482520938,4.3311,207.77,207.69,4.3326]
[1756482521331,18.85035499,207.8,207.68,7.32]
[1756482521535,7.39,207.79,207.68,7.32]
[1756482521737,4.3313,207.76,207.68,7.32]
[1756482522127,7.39,207.79,207.68,7.32]
[1756482522335,7.39,207.79,207.68,74.7176]
[1756482522637,7.39,207.79,207.72,4.332]
[1756482522839,7.39,207.79,207.69,67.3969]
[1756482523234,7.39,207.79,207.68,7.32]
[1756482523840,50.0,207.7,207.68,7.32]
[1756482524539,50.0,207.7,207.64,67.4127]
[1756482524843,50.0,207.7,207.69,7.32]
[1756482525137,34.2037,207.7,207.69,7.32]
[1756482525842,34.2037,207.7,207.6,7.32]
[1756482526037,34.2037,207.7,207.61,67.423]
[1756482526239,34.2037,207.7,207.6,7.32]
[1756482526240,41.5937,207.7,207.6,7.32]
[1756482526439,45.9262,207.7,207.6,11.6543]
[1756482526838,41.5937,207.7,207.6,7.32]
[1756482527236,11.35438192,207.69,207.55,67.4406]
[1756482527638,15.68718192,207.69,207.55,67.4406]
[1756482527942,11.35438192,207.69,207.58,67.4327]
[1756482528144,41.5937,207.7,207.65,4.3333]
[1756482528642,7.39,207.69,207.65,4.3333]
[1756482528840,34.2037,207.7,207.66,67.4061]
[1756482529147,34.2037,207.7,207.64,74.7326]
[1756482529333,34.2037,207.7,207.65,4.3334]
[1756482529538,34.2037,207.7,207.62,67.4194]
[1756482530240,41.5937,207.7,207.61,67.4224]
[1756482530738,17.4742,207.7,207.68,11.6527]
[1756482530942,10.232,207.7,207.69,7.32]
[1756482531137,7.39,207.8,207.7,67.3934]
[1756482531339,7.39,207.8,207.71,67.3897]
[1756482531736,7.39,207.8,207.72,67.3869]
[1756482531940,0.83789803,207.82,207.76,4.331]
[1756482532140,7.39,207.86,207.76,4.331]
[1756482532345,8.22767617,207.86,207.76,4.331]
[1756482532539,8.22767617,207.86,207.78,4.3307]
[1756482532739,8.22767617,207.86,207.7,67.3934]
[1756482533140,7.39,207.85,207.7,67.3934]
[1756482533339,7.39,207.85,207.74,4.3314]
[1756482533536,17.93471843,207.81,207.65,67.408]
[1756482533738,7.39,207.8,207.64,7.32]
[1756482533944,4.3306,207.79,207.68,4.3327]
[1756482534341,4.3306,207.79,207.66,67.4068]
[1756482535047,4.3306,207.79,207.67,4.3329]
[1756482535250,7.39,207.76,207.64,74.733]
[1756482535939,4.3314,207.75,207.66,4.3333]
[1756482536147,7.39,207.76,207.61,67.4217]
[1756482536344,7.39,207.76,207.62,67.4193]
[1756482537543,4.3316,207.75,207.66,4.3331]
[1756482538342,7.39,207.76,207.63,4.3337]
[1756482538542,7.39,207.73,207.59,7.32]
[1756482538738,7.39,207.71,207.59,7.32]
[1756482538943,7.39,207.71,207.6,4.3343]
[1756482538944,4.3327,207.69,207.6,4.3343]
[1756482540143,11.7223,207.71,207.62,4.3341]
[1756482540443,11.7223,207.71,207.59,7.32]
[1756482540444,7.39,207.71,207.59,7.32]
[1756482540644,4.3329,207.68,207.56,125.81866309]
[1756482540844,7.39,207.67,207.56,125.81866309]
[1756482541046,7.39,207.67,207.57,67.4368]
[1756482541348,7.39,207.67,207.61,4.3342]
[1756482542045,7.39,207.72,207.61,74.7437]
[1756482542243,7.39,207.72,207.61,7.32]
[1756482542445,17.93471843,207.71,207.58,67.4331]
[1756482542649,17.93471843,207.71,207.64,4.3336]
[1756482542848,7.39,207.72,207.61,67.4231]
[1756482543047,17.93471843,207.76,207.63,67.4171]
[1756482543550,4.3316,207.75,207.61,67.4224]
[1756482543753,4.3316,207.75,207.66,4.3331]
[1756482544056,7.39,207.77,207.66,67.4063]
[1756482544253,17.93471843,207.81,207.68,67.4005]
[1756482544450,17.93471843,207.81,207.65,74.7297]
[1756482544846,4.331,207.77,207.65,74.7297]
[1756482545242,4.3314,207.76,207.65,7.32]
[1756482545551,17.93471843,207.77,207.65,7.32]
[1756482545751,7.39,207.78,207.66,4.3331]
[1756482546354,4.3314,207.76,207.67,4.3329]
[1756482546651,4.3314,207.76,207.59,76.0977]
[1756482546652,7.27,207.76,207.6,67.4264]
[1756482546856,7.27,207.76,207.65,67.4096]
[1756482547162,7.27,207.76,207.63,7.78]
[1756482547751,4.3318,207.74,207.64,4.3335]
[1756482548356,7.27,207.76,207.64,4.3335]
[1756482548557,7.27,207.76,207.66,4.3333]
[1756482549354,11.36039995,207.75,207.66,4.3333]
[1756482549653,11.36039995,207.75,207.64,4.3337]
[1756482549859,78.73899995,207.75,207.64,4.3337]
[1756482550059,78.73899995,207.75,207.63,7.78]
[1756482550060,67.382,207.74,207.63,7.78]
[1756482550453,4.3329,207.68,207.63,7.78]
[1756482550654,11.36039995,207.71,207.58,7.78]
[1756482550862,11.36039995,207.67,207.58,7.78]
[1756482551152,4.3335,207.66,207.59,4.3346]
[1756482551354,11.36039995,207.67,207.58,7.78]
[1756482551556,18.63039995,207.67,207.54,11.76129919]
[1756482551750,4.3341,207.63,207.54,12.1157]
[1756482552054,11.36039995,207.59,207.49,75.2425]
[1756482552759,11.36039995,207.59,207.49,7.78]
[1756482553356,11.36039995,207.59,207.51,4.3364]
[1756482553559,11.36039995,207.59,207.49,7.78]
[1756482553560,11.36039995,207.6,207.49,7.78]
[1756482554060,7.27,207.59,207.49,7.78]
[1756482554861,7.27,207.59,207.51,4.3362]
[1756482555760,11.36039995,207.57,207.45,3.98129919]
[1756482555964,11.36039995,207.57,207.44,11.76129919]
[1756482556164,11.36039995,207.57,207.44,7.78]
[1756482556466,7.27,207.56,207.44,7.78]
[1756482556963,11.36039995,207.53,207.44,7.78]
[1756482557765,11.36039995,207.53,207.45,4.3375]
[1756482558062,11.36039995,207.53,207.44,7.78]
[1756482558462,11.36039995,207.53,207.44,12.1179]
[1756482559066,7.27,207.52,207.39,75.2738]
[1756482559262,4.3365,207.51,207.43,4.3381]
[1756482559563,7.27,207.52,207.42,67.4851]
[1756482559966,7.27,207.52,207.45,4.3377]
[1756482560365,11.6062,207.52,207.42,4.3382]
[1756482560563,7.27,207.52,207.39,7.78]
[1756482560962,7.27,207.52,207.4,67.4913]
[1756482561363,7.27,207.52,207.39,7.78]
[1756482561764,11.36039995,207.5,207.39,7.78]
[1756482561966,7.27,207.52,207.41,67.4882]
[1756482562269,67.4228,207.62,207.4,67.4919]
[1756482562270,18.63039995,207.58,207.46,7.78]
[1756482562964,11.605,207.58,207.5,4.3366]
[1756482563171,7.27,207.58,207.46,7.78]
[1756482563366,4.336,207.53,207.43,4.3381]
[1756482563662,7.27,207.54,207.42,7.78]
[1756482563870,7.27,207.54,207.41,67.4878]
[1756482563871,7.27,207.54,207.45,75.2557]
[1756482564069,18.63039995,207.59,207.45,7.78]
[1756482564269,18.63039995,207.59,207.46,67.4719]
[1756482564573,18.63039995,207.59,207.5,4.3364]
[1756482564766,7.27,207.59,207.47,7.78]
[1756482564970,11.36039995,207.53,207.4,7.78]
[1756482565470,15.69659995,207.53,207.44,4.3377]
[1756482565871,18.63039995,207.56,207.43,7.78]
[1756482566073,7.27,207.5,207.37,7.78]
[1756482566273,7.27,207.5,207.38,67.4981]
[1756482566473,18.63039995,207.56,207.41,7.78]
[1756482566974,4.3358,207.54,207.44,4.3377]
[1756482567274,18.63039995,207.56,207.41,7.78]
[1756482567275,67.4434,207.55,207.41,7.78]
[1756482567468,18.63039995,207.56,207.42,67.4834]
[1756482567666,18.63039995,207.56,207.43,7.78]
[1756482567865,7.27,207.56,207.46,67.4714]
[1756482568062,7.27,207.56,207.46,7.78]
[1756482568270,11.36039995,207.6,207.46,7.78]
[1756482568564,11.36039995,207.6,207.4,67.4918]
[1756482568565,67.444,207.55,207.39,3.98129919]
[1756482568767,67.444,207.55,207.4,7.78]
[1756482568768,7.27,207.54,207.4,7.78]
[1756482569164,4.3366,207.51,207.42,4.3382]
[1756482569360,7.27,207.54,207.4,7.78]
[1756482569361,11.36039995,207.52,207.4,7.78]
[1756482569768,18.63039995,207.54,207.4,7.78]
[1756482569968,7.27,207.54,207.4,7.78]
[1756482570164,7.27,207.59,207.45,67.4745]
[1756482570369,7.27,207.59,207.38,71.47989919]
[1756482570370,67.4502,207.53,207.39,7.78]
[1756482570567,7.27,207.51,207.39,7.78]
[1756482570761,4.3381,207.43,207.34,7.78]
[1756482570962,7.27,207.47,207.34,7.78]
[1756482571565,67.4832,207.43,207.34,7.78]
[1756482571880,7.27,207.43,207.34,7.78]
[1756482572063,7.27,207.43,207.27,7.78]
[1756482572265,11.6083,207.43,207.31,7.78]
[1756482573071,4.3385,207.41,207.33,4.3402]
[1756482573278,7.27,207.5,207.35,7.78]
[1756482573478,11.6075,207.47,207.35,7.78]